Cogmind - Beta 14 @@@ ROGUE MODE // 2024.11.10 @ 21:49:07 Player: TaxEvasionist Result: Destroyed by S-10 Pest with Light Assault Rifle Performance ------------- Evolutions (1) 500 Regions Visited (2) 400 Robots Destroyed (27) 135 Value Destroyed (649) 649 Prototype IDs (0) 0 Alien Tech Used (0) 0 Bonus (0) 0 TOTAL SCORE: 1684 Bonus ------- None Cogmind --------- Core Integrity 0/400 Matter 300/300 Energy 112/125 System Corruption 0% Temperature Cool (0) Movement Core (900) Ox17 Location -9/Materials Parts ------- > --- POWER (1) -------- Light Ion Engine > --- PROPULSION (3) --- (None) > --- UTILITY (3) ------ Small Storage Unit Large Storage Unit Large Storage Unit > --- WEAPON (2) ------- Beam Rifle Hammer > --- INVENTORY (15) --- Light Ion Engine Heat Sink Heat Sink Signal Interpreter Beam Rifle Heavy Assault Rifle Peak State ------------ > --- POWER ------------ Ion Engine > --- PROPULSION ------- Aluminum Leg Aluminum Leg Aluminum Leg > --- UTILITY ---------- Small Storage Unit Large Storage Unit > --- WEAPON ----------- Small Laser Light Assault Rifle > --- INVENTORY -------- Light Ion Engine Aluminum Leg Wheel Heat Sink Heat Sink Large Storage Unit EM Pulse Gun Beam Cannon Light Cannon Hammer [Rating: 9] Favorites ----------- Power Ion Engine Engine Ion Engine Propulsion Aluminum Leg Leg Aluminum Leg Wheel Compact Wheel Utility Large Storage Unit Device Heat Sink Storage Large Storage Unit Weapon Light Assault Rifle Energy Gun EM Pulse Gun Energy Cannon Beam Cannon Ballistic Gun Light Assault Rifle Ballistic Cannon Light Cannon Launcher Grenade Launcher Impact Weapon Hammer Build | -11 -10 -9 ------- Run | Yrd Mat Mat Slots Evolved 2 | . . 2 Power . | . . . Propulsion 1 | . . 1 Utility 1 | . . 1 Weapon . | . . . Parts Attached 23 | 6 5 12 Power 3 | 1 . 2 Engine 3 | 1 . 2 Core . | . . . Reactor . | . . . Propulsion 7 | 2 1 4 Treads . | . . . Leg 5 | 2 1 2 Wheel 2 | . . 2 Hover . | . . . Flight . | . . . Utility 4 | 1 2 1 Device 1 | . 1 . Storage 3 | 1 1 1 Processor . | . . . Hackware . | . . . Protection . | . . . Artifact . | . . . Weapon 9 | 2 2 5 Energy Gun 4 | 1 1 2 Energy Cannon 1 | . . 1 Ballistic Gun 1 | 1 . . Ballistic Cannon 1 | . . 1 Launcher 1 | . 1 . Special Weapon . | . . . Impact Weapon 1 | . . 1 Slashing Weapon . | . . . Piercing Weapon . | . . . Special Melee Weapon . | . . . Unidentified Prototypes . | . . . Parts Lost 10 | . 1 9 Power 1 | . . 1 Propulsion 4 | . . 4 Utility . | . . . Weapon 5 | . 1 4 Highest Loss Streak 5 | . 1 5 To Critical Strikes . | . . . Average Slot Usage (%) 82 | . 96 72 Engine 12 | . 14 10 Leg 13 | . 28 3 Wheel 4 | . . 7 Device 3 | . 7 . Storage 26 | . 17 33 Energy Gun 9 | . 11 7 Ballistic Gun 6 | . 14 . Ballistic Cannon 3 | . . 6 Impact Weapon 1 | . . 2 Peak Build Rating 9 | 6 8 9 Average Rating 6 | 4 6 6 On Entrance 4 | . 6 8 Naked Turns . | . . . Heaviest Build 54 | 13 32 54 Greatest Support 30 | 20 20 30 Greatest Overweight (x) 17 | . 1 17 Average Overweight (x) 1 | . . 3 Largest Inventory Capacity 15 | 8 15 15 Average Capacity 12 | 6 9 15 Most Carried 11 | 4 11 10 Average Carried 5 | 2 7 5 Final Capacity 15 | 8 15 15 Final Carried 11 | 4 11 6 Class Distribution -------------------- 100% | Mutant Dominant Class ---------------- Mutant | -10/Materials Mutant | -9/Materials Resources | -11 -10 -9 ----------- Run | Yrd Mat Mat Matter Collected 554 | 223 128 203 Remotely . | . . . Salvage Created 780 | . 290 490 Parts 49 | . 18 31 Haulers Intercepted . | . . . Recyclers Shooed 2 | . 1 1 Parts Field Recycled . | . . . Retrieved Matter . | . . . Parts Self-Destructed . | . . . Prevented . | . . . Kills | -11 -10 -9 ------- Run | Yrd Mat Mat Combat Hostiles Destroyed 20 | . 9 11 Guns 10 | . 4 6 Cannons 5 | . . 5 AOE 5 | . 5 . Classes Destroyed 7 | . 4 3 Builder 1 | . 1 . Recycler 1 | . . 1 Watcher 5 | . 2 3 Swarmer 7 | . 3 4 Grunt 9 | . 6 3 Duelist 1 | . . 1 Sentry 3 | . . 3 Best Kill Streak 8 | . 8 4 Combat Bots Only 4 | . 3 4 Max Kills in Single Turn 2 | . 2 1 Gunslinging . | . . . Exploded 1 | . 1 . Melee . | . . . Uniques/NPCs Destroyed . | . . . Combat | -11 -10 -9 -------- Run | Yrd Mat Mat Hostile Shots Fired 183 | . 35 148 Missed 65 | . 14 51 Damage Taken 1696 | . 326 1370 Core 490 | . 87 403 Absorbed by Shields . | . . . Core Remaining (%) 82 | 100 65 . Volleys Fired 78 | . 27 51 Largest 2 | . 2 2 Hottest 100 | . 60 100 Shots Fired 127 | . 54 73 Gun 98 | . 50 48 Cannon 25 | . . 25 Launcher 4 | . 4 . Special . | . . . Kinetic 55 | . 27 28 Thermal 41 | . 4 37 Explosive 4 | . 4 . Electromagnetic 27 | . 19 8 Robot Hit Streak 11 | . 4 11 Robot Miss Streak 4 | . 2 4 Penetration Max . | . . . Secondary Targets 1 | . . 1 Max Gunslinging Chain 1 | . . 1 Shots Hit Robots 70 | . 27 43 Core Hits 43 | . 21 22 Critical Kills . | . . . Critical Parts Destroyed 1 | . 1 . Critical Strikes 2 | . 2 . Destroy 1 | . 1 . Corrupt 1 | . 1 . Melee Attacks . | . . . Impact . | . . . Slashing . | . . . Piercing . | . . . Sneak Attacks . | . . . Combat Hostiles . | . . . Follow-up Attacks . | . . . Damage Inflicted 1319 | . 598 721 Guns 686 | . 276 410 Cannons 266 | . . 266 Explosions 367 | . 322 45 Melee . | . . . Ramming . | . . . Kinetic 377 | . 94 283 Thermal 452 | . 85 367 Explosive 259 | . 259 . Electromagnetic 231 | . 160 71 Impact . | . . . Slashing . | . . . Piercing . | . . . Highest Corruption . | . . . Average Corruption . | . . . Corruption Purged . | . . . Corruption Blocked . | . . . Overload Shots . | . . . Overflow Damage 5 | . . 5 Projectiles 5 | . . 5 Explosions . | . . . Melee . | . . . Knockbacks 2 | . . 2 Impact . | . . . Kinetic 1 | . . 1 Secondary 1 | . . 1 Self-Inflicted Damage 113 | . 113 . Shots 4 | . 4 . Rammed . | . . . Targets Rammed . | . . . Kicked . | . . . Crushed . | . . . Highest Temperature 142 | . 52 142 Average Temperature 36 | . 15 43 Received Heat Transfer 387 | . 90 297 Siege Activations . | . . . Robots Corrupted . | . . . Combat Hostiles . | . . . Parts Fried 2 | . 2 . Impact Corruptions . | . . . Robots Melted . | . . . Combat Hostiles . | . . . Parts Melted 3 | . . 3 Heat Transferred 1053 | . 200 853 Parts Sabotaged . | . . . Parts Stolen . | . . . Parts Stripped . | . . . Power Chain Reactions 3 | . 2 1 Alert | -11 -10 -9 ------- Run | Yrd Mat Mat Peak Influence 324 | . 324 286 Initial 52 | . . 52 Average 155 | . 194 150 Maximum Alert Level 1 | . 1 1 Low Security (%) 76 | 100 50 92 Level 1 23 | . 49 7 Level 2 . | . . . Level 3 . | . . . Level 4 . | . . . Level 5 . | . . . High Security . | . . . Max Security . | . . . Squads Dispatched 4 | . 3 1 Investigation 2 | . 2 . Extermination . | . . . Reinforcement 2 | . 1 1 Assault . | . . . Garrison . | . . . Intercept . | . . . Searches Triggered . | . . . Construction Impeded . | . . . Haulers Reinforced . | . . . Active Scanning Responses . | . . . Cargo Convoy Interrupts . | . . . Stealth | -11 -10 -9 --------- Run | Yrd Mat Mat Distress Signals 4 | . 2 2 Communications Jammed . | . . . Distress Signals . | . . . Times Spotted 36 | . 14 22 Peak Tracking Total 7 | . 6 7 Tactical Retreats 1 | . . 1 Traps | -11 -10 -9 ------- Run | Yrd Mat Mat Traps Triggered 1 | . 1 . Indirectly . | . . . Trap Hack Attempts . | . . . Triggered . | . . . Disarmed . | . . . Reprogrammed . | . . . Reused . | . . . Traps Extracted . | . . . Installed . | . . . Triggered . | . . . Machines | -11 -10 -9 ---------- Run | Yrd Mat Mat Machines Disabled . | . . . Max in Single Turn . | . . . Machines Repaired . | . . . Machines Dismantled . | . . . Machines Sabotaged . | . . . Overloaded Fab Kills . | . . . Hacking | -11 -10 -9 --------- Run | Yrd Mat Mat Machines Accessed 1 | . 1 . Terminals 1 | . 1 . Fabricators . | . . . Repair Stations . | . . . Recycling Units . | . . . Scanalyzers . | . . . Garrison Access . | . . . Total Hacks 3 | . 3 . Successful 1 | . 1 . Failed 2 | . 2 . Catastrophic . | . . . Database Lockouts . | . . . Manual . | . . . Terminals 3 | . 3 . Fabricators . | . . . Repair Stations . | . . . Recycling Units . | . . . Scanalyzers . | . . . Garrison Access . | . . . Terminal Hacks 1 | . 1 . Alert Level 1 | . 1 . Fabricator Hacks . | . . . Repair Station Hacks . | . . . Recycling Unit Hacks . | . . . Scanalyzer . | . . . Garrison Access Hacks . | . . . Unauthorized Hacks . | . . . Terminals . | . . . Fabricators . | . . . Repair Stations . | . . . Recycling Units . | . . . Scanalyzers . | . . . Garrison Access . | . . . Data Cores Recovered . | . . . Used . | . . . Hacking Detections 1 | . 1 . Full Trace Events 1 | . 1 . Feedback Events . | . . . Feedback Blocked . | . . . Robot Schematics Acquired . | . . . Robots Built . | . . . Authchips . | . . . Time . | . . . Total Robot Build Rating . | . . . Part Schematics Acquired . | . . . Parts Built . | . . . Authchips . | . . . Time . | . . . Total Part Build Rating . | . . . Parts Repaired . | . . . Time . | . . . Parts Recycled . | . . . Recycled Matter . | . . . Retrieved Matter . | . . . Retrieved Components . | . . . Parts Scanalyzed . | . . . Part Schematics Acquired . | . . . Parts Damaged . | . . . Bothacking | -11 -10 -9 ------------ Run | Yrd Mat Mat Used RIF Installer . | . . . Robots Hacked . | . . . Non-combat . | . . . Combat . | . . . Robot Hacks Applied . | . . . Relay Couplers Released . | . . . Fabnet Peak Effective % . | . . . Robots Rewired . | . . . Allies Hacked . | . . . Hacks Repelled . | . . . Allies | -11 -10 -9 -------- Run | Yrd Mat Mat Total Allies . | . . . Largest Group . | . . . Highest-Rated Group . | . . . Highest-Rated Ally . | . . . Total Orders . | . . . Ally Attacks . | . . . Total Damage . | . . . Kills . | . . . Allies Corrupted . | . . . Allies Melted . | . . . Intel | -11 -10 -9 ------- Run | Yrd Mat Mat Robot Analysis Total . | . . . Derelict Logs Recovered . | . . . Drone Launches . | . . . Drone Recoveries . | . . . Exploration | -11 -10 -9 ------------- Run | Yrd Mat Mat Turns Passed 1111 | 90 430 591 Spaces Moved 493 | 64 223 206 Core 26 | 3 . 23 Treads . | . . . Legs 305 | 61 223 21 Wheels 162 | . . 162 Hover . | . . . Flight . | . . . Fastest Speed 50 | 50 120 105 Average Speed 167 | 116 135 218 Slowest Speed 900 | 120 190 900 Overloaded Moves . | . . . Propulsion Burnouts . | . . . Robots Hopped . | . . . Cave-ins Triggered . | . . . Exploration Rate (%) 18 | 4 31 21 Regions Visited 2 Branch Regions . Pre-discovered Areas . | . . . Known Exits Taken . | . . . Unknown Exits Taken 2 | 1 1 . Scrap Searched . | . . . Spaces Dug . | . . . Terrain Destroyed 40 | . 38 2 Melee . | . . . Projectile . | . . . AOE 40 | . 38 2 Terrain Rammed . | . . . Walls Destroyed . | . . . Machines Disabled . | . . . Actions | -11 -10 -9 --------- Run | Yrd Mat Mat Total 660 | 79 305 276 Wait 35 | . 34 1 Move 491 | 63 222 206 Hop . | . . . Pick Up 28 | 10 12 6 Fast Attach . | . . . Attach 20 | 6 3 11 Detach 1 | . 1 . Swap 3 | . 2 1 Drop 4 | . 4 . Fire 78 | . 27 51 Melee . | . . . Ram . | . . . Kick . | . . . Crush . | . . . Escape Stasis . | . . . Rewire . | . . . Trap . | . . . Miscellaneous . | . . . Route ------- -11/Scrapyard -10/Materials -9/Materials History --------- Turn | Location | Event 5 | -11/Scrapyard | Discovered new exit (range 15) 91 | -11/Scrapyard | Entered Materials 314 | -10/Materials | Build established: Mutant 403 | -10/Materials | Discovered new exit (range 11) 521 | -10/Materials | Entered another Materials area 521 | -9/Materials | Evolved 2 slots: Propulsion x1, Utility x1 619 | -9/Materials | Lost 5 parts (1p2n2w) 703 | -9/Materials | Core integrity fell below 50% 964 | -9/Materials | Core integrity fell below 20% 1112 | -9/Materials | Destroyed by S-10 Pest with Light Assault Rifle Last Messages --------------- 00898_ Acquired 17 matter. 00898_ R-06 Scavenger collects Lgt. Ion Engine. 00899_ Acquired 2 matter. 00901_ Acquired 4 matter. 00902_ R-06 Scavenger collects Flight Unit. 00903_ Acquired 7 matter. 00908_ R-06 Scavenger collects Flight Unit. 00948_ Lgt. Cannon destroyed. 00948_ Critical hit (Burn: +37). 00948_ Wheel destroyed. 00975_ Y-45 Defender heat short circuits Hvy. Assault Rifle. 00975_ Imp. Ion Engine melted. 00975_ Lgt. Treads melted. 00975_ Y-45 Defender destroyed. 00979_ Acquired Broken Hvy. Assault Rifle. 00984_ Acquired 22 matter. 01001_ Hvy. Assault Rifle melted. 01001_ Y-45 Defender destroyed. 01009_ Acquired Beam Rifle. 01102_ Com. Wheel destroyed. Map ----- +----------------------------------------------------+ | ?????????????????????# # #??????????????? | | ?????????????????????# # #??????????????? | | ?????????????????????+ # #??????????????? | | ?????????????????????# # #??????????????? | | ?????????????????????# ############??????????? | | ????????????????????## ## #??????????? | | ????????????????????# # """ """ #??????????? | | ????????????????????# # """ """ #??????????? | | ????????????????????# + """ """ #??????????? | | ????????????????????# # #???###+###? | | ????????????????????# # #???# #? | | ??????????????????#### ## ##### #? | | ?????????????????##! ## + %! #? | | ?????????????????#! ################ #? | | ?????????????????#! #??????????????# % #? | | ?????????????????#! #????????##????### ###? | | ?????????????????#! #?????? #??????# #??? | | ?????????????????##! #???? #?????##%##?? | | ??????????????????#### ## """ ####### #?? | | ?????????????????????# ## """"" + #?? | | ?????????????????????# ## """"" ####### #?? | | ?????????????????????# s ## """"" #?????## ##?? | | ?????????????????????# s ## """ #??????# #??? | | ?????????????????????# ss## ######## #??? | | ????????????????????## ## + #??? | | ????????????????????# @#####+#### #######??? | | ????????????????????# ### #????????? | | ????????????????????# #????????? | | ????????????????????# ######????????? | | ????????????????????# #####+#####??????????? | | ????????????????????####### #??????????? | | ??????????????????????????# """ #??????????? | | ??????????????????????????#""""" #??????????? | | ??????????????????????????#""""" #??????????? | | ??????????????????????????#""""" #??????????? | | ??????????????????????????# """ #??????????? | | ??????????????????????????# #??????????? | | ??????????????????????????# #??????????? | | ??????????????????????????###########??????????? | | ???????????????????????????????????????????????? | | ???????????????????????????????????????????????? | | ???????????????????????????????????????????????? | | ???????????????????????????????????????????????? | | ???????????????????????????????????????????????? | | ???????????????????????????????????????????????? | | ???????????????????????????????????????????????? | | ???????????????????????????????????????????????? | | ???????????????????????????????????????????????? | | ???????????????????????????????????????????????? | | ???????????????????????????????????????????????? | +----------------------------------------------------+ Best States ------------- Heat Dissipation 35 Energy Generation 10 Energy Capacity 250 Matter Stores 300 Matter Capacity 300 Sight Range 16 Terrain Scan Density 10 Evasion (%) 55 Item Schematics ----------------- None Robot Schematics ------------------ None Fabricated ------------ Nothing Alien Tech Used ----------------- None Achievements -------------- None Challenges ------------ None Game ------ Seed TachyonPitchforkTearclaws Manual? 0 Play Time 00:13:41 Cumulative 12.2 hours Start 2024.11.10 @ 21:34:33 End 2024.11.10 @ 21:49:07 Sessions 1 Manual Loads 0 Difficulty Rogue Special Mode None Game No. 25 Rogue 23 Adventurer 0 Explorer 2 Win Type - Total 0 Types 0/0/0/0/0/0/0/0/0 Lore% 8 Gallery% 19 Achievement% 20 Wizard Run 0 Options --------- Layout 1 ASCII 1 Keyboard 0 Movement Mouse Keybinds 0 Fullscreen 2 Font 20/SmallcapsGlow Map View 64x42 Zoom Use 0% Tactical HUD 1 Map Filters NONE Filters NONE Steam 1 RUN: 32567102-59df-44bd-8fff-484b11ea37f5